[Event "Late-Titled-Tuesday-Blitz-August-29-2023"]
[Site "Chess.com"]
[Date "2023.08.29"]
[Round "4"]
[White "DenizSeyhanoglu1"]
[Black "YEIKO2017"]
[Result "0-1"]
[WhiteElo "2314"]
[BlackElo "2474"]
[TimeControl "180+1"]
[EndTime "14:35:37 PDT"]
[Termination "YEIKO2017 won by resignation"]

1. e4 {[%clk 0:03:00.9]} 1... c5 {[%clk 0:02:53.7]} 2. Nf3 {[%clk 0:03:00.9]}
2... Nf6 {[%clk 0:02:52.2]} 3. Nc3 {[%clk 0:02:58.8]} 3... d6 {[%clk 0:02:51.7]}
4. d4 {[%clk 0:02:58.2]} 4... cxd4 {[%clk 0:02:52.6]} 5. Nxd4 {[%clk 0:02:57.7]}
5... g6 {[%clk 0:02:52.9]} 6. g3 {[%clk 0:02:57.8]} 6... Bg7 {[%clk 0:02:53.1]}
7. Bg2 {[%clk 0:02:58.4]} 7... O-O {[%clk 0:02:53.6]} 8. O-O {[%clk 0:02:58.4]}
8... Nc6 {[%clk 0:02:54.5]} 9. Nde2 {[%clk 0:02:58.7]} 9... Bd7 {[%clk 0:02:54]}
10. Nd5 {[%clk 0:02:58.3]} 10... Rc8 {[%clk 0:02:45.1]} 11. a4 {[%clk
0:02:57.8]} 11... Nxd5 {[%clk 0:02:41.9]} 12. exd5 {[%clk 0:02:58.7]} 12... Ne5
{[%clk 0:02:37.1]} 13. Ra2 {[%clk 0:02:58.6]} 13... Bg4 {[%clk 0:02:28.7]} 14.
h3 {[%clk 0:02:58.3]} 14... Bf3 {[%clk 0:02:26.7]} 15. Bxf3 {[%clk 0:02:56.4]}
15... Nxf3+ {[%clk 0:02:27.6]} 16. Kg2 {[%clk 0:02:57.3]} 16... Ne5 {[%clk
0:02:26.1]} 17. b3 {[%clk 0:02:55]} 17... Nd7 {[%clk 0:02:19.9]} 18. c4 {[%clk
0:02:49.5]} 18... Nf6 {[%clk 0:02:18.1]} 19. Be3 {[%clk 0:02:47.5]} 19... a6
{[%clk 0:02:17.3]} 20. a5 {[%clk 0:02:47.2]} 20... Qd7 {[%clk 0:02:17.8]} 21.
Re1 {[%clk 0:02:43.6]} 21... Rfe8 {[%clk 0:02:17]} 22. Bd4 {[%clk 0:02:38.1]}
22... h5 {[%clk 0:02:16.3]} 23. Nf4 {[%clk 0:02:35.6]} 23... Qf5 {[%clk
0:02:11.6]} 24. Qf3 {[%clk 0:02:17]} 24... e5 {[%clk 0:02:00.2]} 25. dxe6 {[%clk
0:02:16.7]} 25... fxe6 {[%clk 0:02:01.1]} 26. Nd3 {[%clk 0:01:04.4]} 26... e5
{[%clk 0:01:59.8]} 27. Bc3 {[%clk 0:00:47.6]} 27... Qxf3+ {[%clk 0:01:58.7]} 28.
Kxf3 {[%clk 0:00:47.8]} 28... e4+ {[%clk 0:01:59.3]} 0-1

[Event "Late-Titled-Tuesday-Blitz-August-29-2023"]
[Site "Chess.com"]
[Date "2023.08.29"]
[Round "4"]
[White "santosalberto1987"]
[Black "Fonsofan"]
[Result "1/2-1/2"]
[WhiteElo "2559"]
[BlackElo "2674"]
[TimeControl "180+1"]
[EndTime "14:35:41 PDT"]
[Termination "Game drawn by repetition"]

1. e4 {[%clk 0:03:00.9]} 1... c5 {[%clk 0:02:56.9]} 2. Nf3 {[%clk 0:03:00.9]}
2... Nc6 {[%clk 0:02:55.7]} 3. Nc3 {[%clk 0:03:00.5]} 3... e5 {[%clk 0:02:54.9]}
4. Bc4 {[%clk 0:03:00.5]} 4... d6 {[%clk 0:02:55.4]} 5. d3 {[%clk 0:03:00.7]}
5... Be7 {[%clk 0:02:55.3]} 6. Nd2 {[%clk 0:03:01.1]} 6... Bg5 {[%clk
0:02:52.3]} 7. Nf1 {[%clk 0:03:01.2]} 7... Bxc1 {[%clk 0:02:51.6]} 8. Qxc1
{[%clk 0:03:01.5]} 8... Nf6 {[%clk 0:02:51.8]} 9. Ne3 {[%clk 0:03:01.7]} 9...
O-O {[%clk 0:02:52.4]} 10. O-O {[%clk 0:03:01.7]} 10... Be6 {[%clk 0:02:53.1]}
11. Ncd5 {[%clk 0:03:01]} 11... Nd7 {[%clk 0:02:49.5]} 12. f4 {[%clk 0:02:58.9]}
12... exf4 {[%clk 0:02:50.4]} 13. Nxf4 {[%clk 0:02:58.2]} 13... Bxc4 {[%clk
0:02:45.7]} 14. Nxc4 {[%clk 0:02:59.1]} 14... Nde5 {[%clk 0:02:45.9]} 15. Nxe5
{[%clk 0:02:49.8]} 15... Nxe5 {[%clk 0:02:43.1]} 16. Nd5 {[%clk 0:02:40.1]}
16... Nc6 {[%clk 0:02:41.3]} 17. c3 {[%clk 0:02:38.2]} 17... Ne7 {[%clk
0:02:41.7]} 18. Qg5 {[%clk 0:02:36]} 18... Nxd5 {[%clk 0:02:29.6]} 19. Qxd5
{[%clk 0:02:36.9]} 19... Qe7 {[%clk 0:02:29]} 20. Rf5 {[%clk 0:02:31.8]} 20...
Rab8 {[%clk 0:02:22.8]} 21. Raf1 {[%clk 0:02:29.2]} 21... Qe6 {[%clk 0:02:23.3]}
22. Qxe6 {[%clk 0:02:18]} 22... fxe6 {[%clk 0:02:21.5]} 23. Rxf8+ {[%clk
0:02:16.5]} 23... Rxf8 {[%clk 0:02:22.4]} 24. Rxf8+ {[%clk 0:02:12.7]} 24...
Kxf8 {[%clk 0:02:23.3]} 25. Kf2 {[%clk 0:02:11.8]} 25... Ke7 {[%clk 0:02:23.2]}
26. Ke3 {[%clk 0:02:11.7]} 26... Kf6 {[%clk 0:02:23.2]} 27. d4 {[%clk
0:02:10.6]} 27... cxd4+ {[%clk 0:02:11.5]} 28. cxd4 {[%clk 0:02:11.5]} 28... Ke7
{[%clk 0:02:11.8]} 29. Kf4 {[%clk 0:02:08.7]} 29... Kf6 {[%clk 0:02:11]} 30. h4
{[%clk 0:02:08]} 30... e5+ {[%clk 0:02:06.8]} 31. dxe5+ {[%clk 0:02:01.9]} 31...
dxe5+ {[%clk 0:02:06.5]} 32. Kg4 {[%clk 0:02:02.3]} 32... g6 {[%clk 0:02:02.3]}
33. Kf3 {[%clk 0:01:57.3]} 33... Ke6 {[%clk 0:02:02.7]} 34. Kg4 {[%clk
0:01:49.3]} 34... Kf6 {[%clk 0:02:00.7]} 35. Kf3 {[%clk 0:01:36.3]} 35... h5
{[%clk 0:01:52]} 36. Ke3 {[%clk 0:01:35.2]} 36... Ke6 {[%clk 0:01:52.9]} 37. Kd3
{[%clk 0:01:35.5]} 37... Kd6 {[%clk 0:01:53.6]} 38. Kc4 {[%clk 0:01:35.9]} 38...
Kc6 {[%clk 0:01:54.3]} 39. a4 {[%clk 0:01:35.6]} 39... b6 {[%clk 0:01:54.7]} 40.
b4 {[%clk 0:01:33.2]} 40... a6 {[%clk 0:01:55.2]} 41. b5+ {[%clk 0:01:16.5]}
41... axb5+ {[%clk 0:01:56.1]} 42. axb5+ {[%clk 0:01:17.1]} 42... Kd6 {[%clk
0:01:56.1]} 43. Kb4 {[%clk 0:01:17.7]} 43... Ke6 {[%clk 0:01:56.1]} 44. Kc4
{[%clk 0:01:17.9]} 44... Kd6 {[%clk 0:01:56.8]} 45. Kb4 {[%clk 0:01:15.9]} 45...
Ke6 {[%clk 0:01:57.7]} 46. Kc4 {[%clk 0:01:16.3]} 46... Kd6 {[%clk 0:01:58.3]}
1/2-1/2

[Event "Late-Titled-Tuesday-Blitz-August-29-2023"]
[Site "Chess.com"]
[Date "2023.08.29"]
[Round "4"]
[White "sorch29"]
[Black "Druid24"]
[Result "0-1"]
[WhiteElo "2412"]
[BlackElo "2659"]
[TimeControl "180+1"]
[EndTime "14:35:44 PDT"]
[Termination "Druid24 won by resignation"]

1. d4 {[%clk 0:03:00.9]} 1... Nf6 {[%clk 0:02:55.9]} 2. c4 {[%clk 0:03:00.8]}
2... c5 {[%clk 0:02:56.2]} 3. Nf3 {[%clk 0:03:00.2]} 3... cxd4 {[%clk
0:02:55.9]} 4. Nxd4 {[%clk 0:03:01.1]} 4... g6 {[%clk 0:02:53.6]} 5. Nc3 {[%clk
0:03:00.6]} 5... Bg7 {[%clk 0:02:52.9]} 6. e4 {[%clk 0:03:01.2]} 6... O-O {[%clk
0:02:52.5]} 7. Be3 {[%clk 0:03:01.8]} 7... Nc6 {[%clk 0:02:52.7]} 8. Be2 {[%clk
0:03:01.9]} 8... Nxd4 {[%clk 0:02:52.8]} 9. Bxd4 {[%clk 0:03:01.2]} 9... d6
{[%clk 0:02:53.7]} 10. O-O {[%clk 0:03:01.2]} 10... a5 {[%clk 0:02:54.5]} 11.
Qc2 {[%clk 0:02:41.1]} 11... e6 {[%clk 0:02:51.6]} 12. Rfd1 {[%clk 0:02:34.6]}
12... Bd7 {[%clk 0:02:43.3]} 13. c5 {[%clk 0:02:00]} 13... d5 {[%clk 0:02:11.3]}
14. exd5 {[%clk 0:01:54.3]} 14... exd5 {[%clk 0:02:12]} 15. Bf3 {[%clk
0:01:41.1]} 15... Bc6 {[%clk 0:02:10.8]} 16. Rd3 {[%clk 0:01:06.6]} 16... Re8
{[%clk 0:02:09.4]} 17. Rad1 {[%clk 0:01:06]} 17... Qe7 {[%clk 0:02:04.1]} 18. h3
{[%clk 0:00:57.2]} 18... Rad8 {[%clk 0:02:03.9]} 19. Qd2 {[%clk 0:00:54.6]}
19... Ne4 {[%clk 0:02:01.7]} 20. Qe3 {[%clk 0:00:43.8]} 20... Bxd4 {[%clk
0:02:00.5]} 21. Qxd4 {[%clk 0:00:38.6]} 21... Nxc5 {[%clk 0:02:00.1]} 22. Re3
{[%clk 0:00:35.2]} 22... Ne6 {[%clk 0:01:59.6]} 23. Qb6 {[%clk 0:00:23.2]} 23...
d4 {[%clk 0:02:00.2]} 0-1

[Event "Late-Titled-Tuesday-Blitz-August-29-2023"]
[Site "Chess.com"]
[Date "2023.08.29"]
[Round "4"]
[White "The_Straightforward_Rook"]
[Black "Good_Knight_Kiss"]
[Result "1-0"]
[WhiteElo "2489"]
[BlackElo "2354"]
[TimeControl "180+1"]
[EndTime "14:36:08 PDT"]
[Termination "The_Straightforward_Rook won on time"]

1. d4 {[%clk 0:02:57.1]} 1... Nf6 {[%clk 0:02:56.7]} 2. c4 {[%clk 0:02:56.8]}
2... g6 {[%clk 0:02:56.5]} 3. h4 {[%clk 0:02:57.2]} 3... Bg7 {[%clk 0:02:55.9]}
4. Nc3 {[%clk 0:02:57.3]} 4... d6 {[%clk 0:02:56.2]} 5. e4 {[%clk 0:02:57.4]}
5... O-O {[%clk 0:02:55.5]} 6. h5 {[%clk 0:02:55.9]} 6... c5 {[%clk 0:02:53.7]}
7. h6 {[%clk 0:02:52.2]} 7... Bh8 {[%clk 0:02:53.4]} 8. d5 {[%clk 0:02:52.4]}
8... e6 {[%clk 0:02:53.3]} 9. Bg5 {[%clk 0:02:51.5]} 9... exd5 {[%clk
0:02:53.1]} 10. exd5 {[%clk 0:02:48.5]} 10... Re8+ {[%clk 0:02:51]} 11. Nge2
{[%clk 0:02:38.1]} 11... Qb6 {[%clk 0:02:41.3]} 12. b3 {[%clk 0:02:32.5]} 12...
Ne4 {[%clk 0:02:22.7]} 13. Nxe4 {[%clk 0:02:31.7]} 13... Rxe4 {[%clk 0:02:23.6]}
14. f3 {[%clk 0:02:27.6]} 14... Re8 {[%clk 0:02:17.7]} 15. Kf2 {[%clk
0:02:27.3]} 15... Nd7 {[%clk 0:02:12.3]} 16. Rc1 {[%clk 0:02:24.9]} 16... Ne5
{[%clk 0:02:05.9]} 17. Ng3 {[%clk 0:02:19.1]} 17... a5 {[%clk 0:01:56.9]} 18. a4
{[%clk 0:02:16.3]} 18... f5 {[%clk 0:01:44.9]} 19. Bd2 {[%clk 0:02:12.8]} 19...
Bd7 {[%clk 0:01:32.9]} 20. Bc3 {[%clk 0:02:11.3]} 20... Re7 {[%clk 0:01:25.3]}
21. Bd3 {[%clk 0:02:10.1]} 21... Nxd3+ {[%clk 0:01:12.4]} 22. Qxd3 {[%clk
0:02:11]} 22... Qxb3 {[%clk 0:01:12.5]} 23. Ne2 {[%clk 0:01:52.4]} 1-0

[Event "Late-Titled-Tuesday-Blitz-August-29-2023"]
[Site "Chess.com"]
[Date "2023.08.29"]
[Round "4"]
[White "Hoshka"]
[Black "Defenstrator"]
[Result "1-0"]
[WhiteElo "2005"]
[BlackElo "2290"]
[TimeControl "180+1"]
[EndTime "14:36:08 PDT"]
[Termination "Hoshka won by checkmate"]

1. d4 {[%clk 0:03:00.9]} 1... f6 {[%clk 0:02:56]} 2. e4 {[%clk 0:02:59.3]} 2...
Kf7 {[%clk 0:02:56.3]} 3. Bd3 {[%clk 0:02:58.5]} 3... Nh6 {[%clk 0:02:44.9]} 4.
c3 {[%clk 0:02:56.6]} 4... g6 {[%clk 0:02:44.6]} 5. h4 {[%clk 0:02:55.8]} 5...
Kg7 {[%clk 0:02:41.4]} 6. h5 {[%clk 0:02:54.8]} 6... g5 {[%clk 0:02:42]} 7. Ne2
{[%clk 0:02:54.3]} 7... e5 {[%clk 0:02:38.6]} 8. Ng3 {[%clk 0:02:49.9]} 8... d6
{[%clk 0:02:29.9]} 9. Nd2 {[%clk 0:02:47.3]} 9... Nc6 {[%clk 0:02:23.5]} 10. d5
{[%clk 0:02:21.8]} 10... Ne7 {[%clk 0:02:18.8]} 11. Ndf1 {[%clk 0:02:21.3]}
11... Nf7 {[%clk 0:02:00.1]} 12. h6+ {[%clk 0:02:10]} 12... Nxh6 {[%clk
0:02:00.5]} 13. Ne3 {[%clk 0:02:05.1]} 13... Ng6 {[%clk 0:01:20.5]} 14. Nh5+
{[%clk 0:01:55.9]} 14... Kf7 {[%clk 0:01:17.5]} 15. g3 {[%clk 0:01:53]} 15...
Bd7 {[%clk 0:01:00.4]} 16. Be2 {[%clk 0:01:50.8]} 16... f5 {[%clk 0:00:57.4]}
17. exf5 {[%clk 0:01:36.9]} 17... Nxf5 {[%clk 0:00:57.5]} 18. Bg4 {[%clk
0:01:31.1]} 18... Nxe3 {[%clk 0:00:53.6]} 19. Bxe3 {[%clk 0:01:30.6]} 19... Be7
{[%clk 0:00:38.7]} 20. Qf3+ {[%clk 0:01:28.9]} 20... Ke8 {[%clk 0:00:31.6]} 21.
Ng7# {[%clk 0:01:26.2]} 1-0

[Event "Late-Titled-Tuesday-Blitz-August-29-2023"]
[Site "Chess.com"]
[Date "2023.08.29"]
[Round "4"]
[White "Aygehovit1992"]
[Black "effefe"]
[Result "1-0"]
[WhiteElo "2723"]
[BlackElo "2422"]
[TimeControl "180+1"]
[EndTime "14:36:13 PDT"]
[Termination "Aygehovit1992 won on time"]

1. e4 {[%clk 0:03:00.9]} 1... c5 {[%clk 0:02:59.7]} 2. Nc3 {[%clk 0:02:58.1]}
2... Nc6 {[%clk 0:02:59.1]} 3. Bb5 {[%clk 0:02:57.6]} 3... Nd4 {[%clk
0:02:58.8]} 4. Nf3 {[%clk 0:02:56.4]} 4... a6 {[%clk 0:02:54.1]} 5. Bd3 {[%clk
0:02:55.6]} 5... g6 {[%clk 0:02:53.7]} 6. O-O {[%clk 0:02:50.1]} 6... Bg7 {[%clk
0:02:53.7]} 7. Re1 {[%clk 0:02:50.8]} 7... d6 {[%clk 0:02:36.2]} 8. Nxd4 {[%clk
0:02:35.4]} 8... cxd4 {[%clk 0:02:28.4]} 9. Ne2 {[%clk 0:02:35.3]} 9... d5
{[%clk 0:02:16]} 10. a4 {[%clk 0:01:53.7]} 10... dxe4 {[%clk 0:02:02.3]} 11.
Bxe4 {[%clk 0:01:54.6]} 11... e5 {[%clk 0:02:01.6]} 12. d3 {[%clk 0:01:41.8]}
12... Ne7 {[%clk 0:01:37.9]} 13. f4 {[%clk 0:01:30.4]} 13... O-O {[%clk
0:01:32]} 14. fxe5 {[%clk 0:01:27.8]} 1-0

[Event "Late-Titled-Tuesday-Blitz-August-29-2023"]
[Site "Chess.com"]
[Date "2023.08.29"]
[Round "4"]
[White "FeketeBarika"]
[Black "HajiyevKanan"]
[Result "1-0"]
[WhiteElo "2369"]
[BlackElo "2473"]
[TimeControl "180+1"]
[EndTime "14:36:19 PDT"]
[Termination "FeketeBarika won by checkmate"]

1. c4 {[%clk 0:02:51.2]} 1... c6 {[%clk 0:02:59.7]} 2. g3 {[%clk 0:02:47.1]}
2... d5 {[%clk 0:03:00.6]} 3. Bg2 {[%clk 0:02:42.5]} 3... Nf6 {[%clk 0:02:59.3]}
4. Nf3 {[%clk 0:02:41.8]} 4... g6 {[%clk 0:02:59.2]} 5. O-O {[%clk 0:02:41]}
5... Bg7 {[%clk 0:02:59.8]} 6. cxd5 {[%clk 0:02:41.3]} 6... cxd5 {[%clk
0:03:00.7]} 7. d4 {[%clk 0:02:41.7]} 7... O-O {[%clk 0:03:01.3]} 8. Nc3 {[%clk
0:02:42.4]} 8... Ne4 {[%clk 0:03:01.9]} 9. Ne5 {[%clk 0:02:39.2]} 9... Nxc3
{[%clk 0:03:02.1]} 10. bxc3 {[%clk 0:02:37.5]} 10... e6 {[%clk 0:03:00.8]} 11.
Ba3 {[%clk 0:02:37.6]} 11... Re8 {[%clk 0:03:00.1]} 12. c4 {[%clk 0:02:35.9]}
12... dxc4 {[%clk 0:02:46.1]} 13. e3 {[%clk 0:02:33.6]} 13... Qa5 {[%clk
0:01:52.3]} 14. Nxc4 {[%clk 0:02:29.6]} 14... Qa6 {[%clk 0:01:52.9]} 15. Rc1
{[%clk 0:02:26.7]} 15... Nc6 {[%clk 0:01:41.5]} 16. Nd6 {[%clk 0:02:16.3]} 16...
Rd8 {[%clk 0:01:39.5]} 17. Bc5 {[%clk 0:02:15.3]} 17... Na5 {[%clk 0:01:14.1]}
18. Ne4 {[%clk 0:02:05.4]} 18... b6 {[%clk 0:01:09]} 19. Be7 {[%clk 0:02:04.6]}
19... Rd5 {[%clk 0:00:58.9]} 20. Nf6+ {[%clk 0:02:02.1]} 20... Bxf6 {[%clk
0:00:57.6]} 21. Bxf6 {[%clk 0:02:03]} 21... Bb7 {[%clk 0:00:57.6]} 22. Bxd5
{[%clk 0:01:59.5]} 22... Bxd5 {[%clk 0:00:58.5]} 23. Qg4 {[%clk 0:01:56.1]}
23... h5 {[%clk 0:00:57.4]} 24. Qg5 {[%clk 0:01:55.6]} 24... Kh7 {[%clk
0:00:57.6]} 25. Rc7 {[%clk 0:01:52.2]} 25... Rf8 {[%clk 0:00:54.1]} 26. Be7
{[%clk 0:01:46]} 26... Re8 {[%clk 0:00:54.3]} 27. Bd6 {[%clk 0:01:46.1]} 27...
Kg8 {[%clk 0:00:54.3]} 28. Be5 {[%clk 0:01:45]} 28... Nc6 {[%clk 0:00:32.9]} 29.
Rxc6 {[%clk 0:01:42.9]} 29... Bxc6 {[%clk 0:00:33.1]} 30. Qh6 {[%clk 0:01:39.4]}
30... f6 {[%clk 0:00:29.9]} 31. Qxg6+ {[%clk 0:01:36.1]} 31... Kf8 {[%clk
0:00:29.4]} 32. Qxf6+ {[%clk 0:01:36.3]} 32... Kg8 {[%clk 0:00:28.5]} 33. Qg7#
{[%clk 0:01:37.2]} 1-0

[Event "Late-Titled-Tuesday-Blitz-August-29-2023"]
[Site "Chess.com"]
[Date "2023.08.29"]
[Round "4"]
[White "NigelDwarf"]
[Black "WildBizon"]
[Result "1-0"]
[WhiteElo "2545"]
[BlackElo "2698"]
[TimeControl "180+1"]
[EndTime "14:36:24 PDT"]
[Termination "NigelDwarf won by checkmate"]

1. Nf3 {[%clk 0:03:00.9]} 1... f5 {[%clk 0:02:57.6]} 2. d3 {[%clk 0:02:58]} 2...
d6 {[%clk 0:02:57.3]} 3. e4 {[%clk 0:02:55.9]} 3... e5 {[%clk 0:02:57.6]} 4. Nc3
{[%clk 0:02:56.1]} 4... Nf6 {[%clk 0:02:55.4]} 5. exf5 {[%clk 0:02:54.9]} 5...
Bxf5 {[%clk 0:02:55.7]} 6. d4 {[%clk 0:02:55]} 6... e4 {[%clk 0:02:56.2]} 7. Nh4
{[%clk 0:02:54.4]} 7... Qd7 {[%clk 0:02:56.8]} 8. Bg5 {[%clk 0:02:52.1]} 8...
Be7 {[%clk 0:02:48.1]} 9. Bc4 {[%clk 0:02:33]} 9... Nc6 {[%clk 0:02:46.4]} 10.
d5 {[%clk 0:02:28.3]} 10... Ne5 {[%clk 0:02:44.4]} 11. Bb5 {[%clk 0:01:54.2]}
11... c6 {[%clk 0:02:42.7]} 12. dxc6 {[%clk 0:01:36.9]} 12... bxc6 {[%clk
0:02:42.5]} 13. Bxf6 {[%clk 0:01:20.5]} 13... Bxf6 {[%clk 0:02:40.8]} 14. Nxf5
{[%clk 0:00:51.8]} 14... Qxf5 {[%clk 0:02:38.9]} 15. Qxd6 {[%clk 0:00:46.4]}
15... cxb5 {[%clk 0:02:38.5]} 16. Qd5 {[%clk 0:00:26.1]} 16... Rd8 {[%clk
0:02:28.1]} 17. Qxb5+ {[%clk 0:00:25.9]} 17... Kf7 {[%clk 0:02:27.2]} 18. Qb3+
{[%clk 0:00:20.2]} 18... Kg6 {[%clk 0:02:24]} 19. O-O {[%clk 0:00:20.5]} 19...
Rd2 {[%clk 0:02:15.1]} 20. Rae1 {[%clk 0:00:20.4]} 20... Nf3+ {[%clk 0:02:06.6]}
21. gxf3 {[%clk 0:00:17.6]} 21... exf3 {[%clk 0:02:07]} 22. Kh1 {[%clk
0:00:16.6]} 22... Qh3 {[%clk 0:02:03.6]} 23. Rg1+ {[%clk 0:00:16.6]} 23... Kh6
{[%clk 0:02:04.3]} 24. Ne4 {[%clk 0:00:11.3]} 24... Rd5 {[%clk 0:01:41.4]} 25.
Qxd5 {[%clk 0:00:09.8]} 25... Re8 {[%clk 0:01:41.4]} 26. Nxf6 {[%clk 0:00:07.2]}
26... Rxe1 {[%clk 0:01:41.5]} 27. Qg5# {[%clk 0:00:07.4]} 1-0

[Event "Late-Titled-Tuesday-Blitz-August-29-2023"]
[Site "Chess.com"]
[Date "2023.08.29"]
[Round "4"]
[White "Machteld145"]
[Black "EsmeraldasAnderson03"]
[Result "0-1"]
[WhiteElo "2489"]
[BlackElo "2382"]
[TimeControl "180+1"]
[EndTime "14:36:27 PDT"]
[Termination "EsmeraldasAnderson03 won by resignation"]

1. e4 {[%clk 0:03:00.9]} 1... c5 {[%clk 0:02:57.9]} 2. Nf3 {[%clk 0:03:00.8]}
2... d6 {[%clk 0:02:57.6]} 3. d4 {[%clk 0:03:01.4]} 3... cxd4 {[%clk 0:02:58.5]}
4. Nxd4 {[%clk 0:03:02.1]} 4... Nf6 {[%clk 0:02:58.4]} 5. Nc3 {[%clk 0:03:02.5]}
5... a6 {[%clk 0:02:59.1]} 6. Bg5 {[%clk 0:03:02.4]} 6... e6 {[%clk 0:02:59.1]}
7. f4 {[%clk 0:03:02.6]} 7... Be7 {[%clk 0:02:59.8]} 8. Qf3 {[%clk 0:03:02.7]}
8... O-O {[%clk 0:03:00.2]} 9. O-O-O {[%clk 0:03:03]} 9... Qc7 {[%clk
0:03:00.7]} 10. g4 {[%clk 0:03:02.8]} 10... b5 {[%clk 0:03:01]} 11. Bg2 {[%clk
0:03:01.3]} 11... Bb7 {[%clk 0:03:01.5]} 12. a3 {[%clk 0:02:52.9]} 12... Nc6
{[%clk 0:02:50.4]} 13. e5 {[%clk 0:02:28.5]} 13... Na5 {[%clk 0:02:49.7]} 14.
Qg3 {[%clk 0:02:26.6]} 14... dxe5 {[%clk 0:02:41.9]} 15. fxe5 {[%clk 0:02:22.2]}
15... Nd5 {[%clk 0:02:42.1]} 16. Nxd5 {[%clk 0:02:16.9]} 16... Bxg5+ {[%clk
0:02:41.5]} 17. Ne3 {[%clk 0:02:14.7]} 17... Bxg2 {[%clk 0:02:40.1]} 18. Rhg1
{[%clk 0:02:05.4]} 18... Bd5 {[%clk 0:02:34.5]} 19. h4 {[%clk 0:02:05.2]} 19...
Bxe3+ {[%clk 0:02:35]} 20. Qxe3 {[%clk 0:02:06.1]} 20... Rac8 {[%clk 0:02:35.1]}
21. Kb1 {[%clk 0:02:02.5]} 21... Nc4 {[%clk 0:02:33.7]} 22. Qg5 {[%clk
0:02:00.1]} 22... Qxe5 {[%clk 0:02:33.7]} 23. Qc1 {[%clk 0:01:52.8]} 23... Qe3
{[%clk 0:02:25.6]} 24. Qxe3 {[%clk 0:01:45.1]} 24... Nxe3 {[%clk 0:02:26.5]} 25.
Rd3 {[%clk 0:01:45.2]} 25... Nxc2 {[%clk 0:02:17.1]} 26. Nxc2 {[%clk 0:01:42.6]}
26... Be4 {[%clk 0:02:17.5]} 27. Rc3 {[%clk 0:01:42.6]} 27... Rxc3 {[%clk
0:02:17.8]} 28. bxc3 {[%clk 0:01:42.9]} 28... Rd8 {[%clk 0:02:18.1]} 29. Re1
{[%clk 0:01:38.9]} 29... f5 {[%clk 0:02:15.9]} 30. Kc1 {[%clk 0:01:31.8]} 30...
Rd3 {[%clk 0:02:15.5]} 31. Re3 {[%clk 0:01:24]} 31... Rxe3 {[%clk 0:02:09.4]}
32. Nxe3 {[%clk 0:01:24.9]} 32... f4 {[%clk 0:02:10.2]} 33. Nd1 {[%clk
0:01:21.2]} 33... Kf7 {[%clk 0:02:10.5]} 34. Kd2 {[%clk 0:01:19.5]} 34... e5
{[%clk 0:02:09.9]} 35. Nf2 {[%clk 0:01:19.6]} 35... Bf3 {[%clk 0:02:09.1]} 36.
Nd3 {[%clk 0:01:12.2]} 36... Kf6 {[%clk 0:02:07]} 37. g5+ {[%clk 0:01:06]} 37...
Kf5 {[%clk 0:02:07.2]} 38. Nc5 {[%clk 0:01:06.4]} 38... e4 {[%clk 0:02:05.9]}
39. Nxa6 {[%clk 0:01:05.5]} 39... e3+ {[%clk 0:02:06.4]} 40. Ke1 {[%clk
0:01:05.5]} 40... Bg4 {[%clk 0:02:04.9]} 41. Nb4 {[%clk 0:00:25.4]} 41... f3
{[%clk 0:02:03.4]} 42. Nd3 {[%clk 0:00:24.6]} 42... Ke4 {[%clk 0:02:02.9]} 43.
Nf2+ {[%clk 0:00:24.7]} 43... exf2+ {[%clk 0:02:02.6]} 44. Kf1 {[%clk
0:00:25.6]} 44... Ke3 {[%clk 0:02:01.9]} 0-1

[Event "Late-Titled-Tuesday-Blitz-August-29-2023"]
[Site "Chess.com"]
[Date "2023.08.29"]
[Round "4"]
[White "FedaMaster"]
[Black "MusicCityMaster"]
[Result "1-0"]
[WhiteElo "2684"]
[BlackElo "2451"]
[TimeControl "180+1"]
[EndTime "14:36:50 PDT"]
[Termination "FedaMaster won by resignation"]

1. e4 {[%clk 0:03:00.9]} 1... c5 {[%clk 0:02:59.4]} 2. d4 {[%clk 0:03:01.3]}
2... cxd4 {[%clk 0:02:59]} 3. c3 {[%clk 0:03:02.1]} 3... Nf6 {[%clk 0:02:58.9]}
4. e5 {[%clk 0:03:02.6]} 4... Nd5 {[%clk 0:02:59.5]} 5. Nf3 {[%clk 0:03:03.3]}
5... e6 {[%clk 0:02:59.3]} 6. cxd4 {[%clk 0:03:02.7]} 6... b6 {[%clk 0:02:59.3]}
7. Nc3 {[%clk 0:03:01.6]} 7... Nxc3 {[%clk 0:02:59]} 8. bxc3 {[%clk 0:03:02.5]}
8... Qc7 {[%clk 0:02:59.1]} 9. Bd2 {[%clk 0:03:01.6]} 9... Bb7 {[%clk
0:02:59.2]} 10. Bd3 {[%clk 0:03:01.5]} 10... d6 {[%clk 0:02:59]} 11. O-O {[%clk
0:03:01]} 11... Nd7 {[%clk 0:02:57.8]} 12. Ng5 {[%clk 0:02:58.5]} 12... dxe5
{[%clk 0:02:36.9]} 13. Qh5 {[%clk 0:02:58]} 13... Nf6 {[%clk 0:02:30.4]} 14.
Bb5+ {[%clk 0:02:43.8]} 14... Kd8 {[%clk 0:02:24.8]} 15. Nxf7+ {[%clk
0:02:37.8]} 15... Ke7 {[%clk 0:02:17.1]} 16. Bg5 {[%clk 0:02:09.5]} 16... g6
{[%clk 0:01:55]} 17. Qh4 {[%clk 0:01:54.1]} 17... Kxf7 {[%clk 0:01:30.2]} 18.
Bxf6 {[%clk 0:01:53.4]} 18... Bg7 {[%clk 0:00:55.4]} 19. dxe5 {[%clk 0:01:38.1]}
19... Bd5 {[%clk 0:00:34.4]} 20. c4 {[%clk 0:01:27.9]} 20... Bb7 {[%clk
0:00:19.8]} 21. Rad1 {[%clk 0:01:26.2]} 21... Bc8 {[%clk 0:00:15.9]} 22. Bxg7
{[%clk 0:01:15.4]} 22... Kxg7 {[%clk 0:00:16]} 23. Qf6+ {[%clk 0:01:15.7]} 23...
Kg8 {[%clk 0:00:10.9]} 24. Rd8+ {[%clk 0:01:15.5]} 24... Qxd8 {[%clk 0:00:11.4]}
25. Qxd8+ {[%clk 0:01:16]} 25... Kg7 {[%clk 0:00:12.1]} 26. Qf6+ {[%clk
0:01:16.4]} 26... Kg8 {[%clk 0:00:12.1]} 27. Rd1 {[%clk 0:01:13.4]} 27... Bb7
{[%clk 0:00:12.5]} 28. Rd7 {[%clk 0:01:13.3]} 1-0